[Event "Titled Tuesday Blitz November 08 Early 2022"]
[White "Jodorcovsky Werjivker, Paulo"]
[Black "Paszewski, Mateusz"]
[WhiteFideId "3700305"]
[BlackFideId "1141058"]
[WhiteElo "2120"]
[BlackElo "2263"]
[Result "1-0"]
[Round "04"]
[TimeControl "180+1"]
[Date "2022.11.09"]
[WhiteClock "0:00:06"]
[BlackClock "0:00:04"]

1. e4 {[%clk 0:03:00]}  c6 {[%clk 0:02:54]} 2. d4 {[%clk 0:02:59]}  d5 {[%clk 0:02:54]} 3. exd5 {[%clk 0:03:00]}  cxd5 {[%clk 0:02:51]} 4. Bd3 {[%clk 0:03:00]}  Nc6 {[%clk 0:02:47]} 5. c3 {[%clk 0:03:01]}  Qc7 {[%clk 0:02:45]} 6. Ne2 {[%clk 0:03:00]}  Bg4 {[%clk 0:02:43]} 7. O-O {[%clk 0:03:00]}  e6 {[%clk 0:02:43]} 8. Qe1 {[%clk 0:02:59]}  Nf6 {[%clk 0:02:41]} 9. f3 {[%clk 0:02:58]}  Bh5 {[%clk 0:02:41]} 10. Qh4 {[%clk 0:02:59]}  Rg8 {[%clk 0:02:42]} 11. Bg5 {[%clk 0:02:57]}  Bg6 {[%clk 0:02:36]} 12. Nf4 {[%clk 0:02:49]}  Bd6 {[%clk 0:02:31]} 13. Bxg6 {[%clk 0:02:30]}  hxg6 {[%clk 0:02:32]} 14. Nd3 {[%clk 0:02:01]}  O-O-O {[%clk 0:02:25]} 15. Bf4 {[%clk 0:01:58]}  Ne7 {[%clk 0:01:37]} 16. Bxd6 {[%clk 0:01:53]}  Rxd6 {[%clk 0:01:38]} 17. Ne5 {[%clk 0:01:51]}  Nf5 {[%clk 0:01:36]} 18. Qf2 {[%clk 0:01:50]}  Rh8 {[%clk 0:01:32]} 19. Na3 {[%clk 0:01:50]}  a6 {[%clk 0:01:32]} 20. Nc2 {[%clk 0:01:50]}  Rdd8 {[%clk 0:01:24]} 21. Ne3 {[%clk 0:01:49]}  Nd7 {[%clk 0:01:12]} 22. N3g4 {[%clk 0:01:38]}  Nxe5 {[%clk 0:01:06]} 23. dxe5 {[%clk 0:01:28]}  Kb8 {[%clk 0:01:07]} 24. h3 {[%clk 0:01:22]}  g5 {[%clk 0:00:53]} 25. Rad1 {[%clk 0:01:17]}  Nh4 {[%clk 0:00:53]} 26. Rd4 {[%clk 0:01:13]}  Ng6 {[%clk 0:00:52]} 27. Re1 {[%clk 0:01:11]}  Nf4 {[%clk 0:00:52]} 28. Qc2 {[%clk 0:00:57]}  Rh7 {[%clk 0:00:44]} 29. Qxh7 {[%clk 0:00:49]}  Qb6 {[%clk 0:00:41]} 30. Qc2 {[%clk 0:00:44]}  Rc8 {[%clk 0:00:41]} 31. Qf2 {[%clk 0:00:42]}  Rh8 {[%clk 0:00:35]} 32. Rxf4 {[%clk 0:00:34]}  Qxf2+ {[%clk 0:00:34]} 33. Kxf2 {[%clk 0:00:31]}  gxf4 {[%clk 0:00:35]} 34. Rd1 {[%clk 0:00:30]}  Kc7 {[%clk 0:00:31]} 35. Rd4 {[%clk 0:00:30]}  g5 {[%clk 0:00:32]} 36. Nf6 {[%clk 0:00:28]}  Kc6 {[%clk 0:00:31]} 37. a4 {[%clk 0:00:26]}  b5 {[%clk 0:00:28]} 38. Ke2 {[%clk 0:00:25]}  Rb8 {[%clk 0:00:26]} 39. a5 {[%clk 0:00:20]}  Rh8 {[%clk 0:00:23]} 40. Kd3 {[%clk 0:00:19]}  Kc5 {[%clk 0:00:22]} 41. Rb4 {[%clk 0:00:18]}  Kc6 {[%clk 0:00:22]} 42. Kd4 {[%clk 0:00:18]}  Rc8 {[%clk 0:00:19]} 43. b3 {[%clk 0:00:18]}  Rd8 {[%clk 0:00:20]} 44. Nh7 {[%clk 0:00:16]}  Rg8 {[%clk 0:00:19]} 45. c4 {[%clk 0:00:16]}  dxc4 {[%clk 0:00:20]} 46. bxc4 {[%clk 0:00:17]}  Rd8+ {[%clk 0:00:07]} 47. Kc3 {[%clk 0:00:15]}  Rd1 {[%clk 0:00:05]} 48. cxb5+ {[%clk 0:00:14]}  axb5 {[%clk 0:00:06]} 49. Rb2 {[%clk 0:00:14]}  Ra1 {[%clk 0:00:04]} 50. Kb4 {[%clk 0:00:14]}  Ra4+ {[%clk 0:00:04]} 51. Kb3 {[%clk 0:00:14]}  Rxa5 {[%clk 0:00:03]} 52. Nxg5 {[%clk 0:00:15]}  Kd5 {[%clk 0:00:03]} 53. Nxf7 {[%clk 0:00:15]}  Ra1 {[%clk 0:00:04]} 54. Rd2+ {[%clk 0:00:15]}  Kc5 {[%clk 0:00:04]} 55. Nd8 {[%clk 0:00:14]}  Rb1+ {[%clk 0:00:04]} 56. Kc2 {[%clk 0:00:14]}  Re1 {[%clk 0:00:04]} 57. Nxe6+ {[%clk 0:00:14]}  Kb4 {[%clk 0:00:04]} 58. Rd4+ {[%clk 0:00:13]}  Ka3 {[%clk 0:00:05]} 59. Re4 {[%clk 0:00:13]}  Rg1 {[%clk 0:00:04]} 60. Nxf4 {[%clk 0:00:11]}  b4 {[%clk 0:00:04]} 61. Re3+ {[%clk 0:00:12]}  Ka2 {[%clk 0:00:04]} 62. Nd5 {[%clk 0:00:11]}  Rxg2+ {[%clk 0:00:04]} 63. Kd3 {[%clk 0:00:10]}  b3 {[%clk 0:00:03]} 64. Nc3+ {[%clk 0:00:09]}  Ka3 {[%clk 0:00:02]} 65. Re4 {[%clk 0:00:07]}  b2 {[%clk 0:00:02]} 66. Ra4+ {[%clk 0:00:06]}  Kb3 {[%clk 0:00:03]} 67. Ra8 {[%clk 0:00:06]}  Rf2 {[%clk 0:00:03]} 68. Rb8+ {[%clk 0:00:06]}  Ka3 {[%clk 0:00:04]} 69. Nb1+ {[%clk 0:00:06]}  Ka2 {[%clk 0:00:04]} 70. Nd2 {[%clk 0:00:07]}  Rf1 {[%clk 0:00:04]} 71. Nxf1 {[%clk 0:00:05]}  b1=Q+ {[%clk 0:00:04]} 72. Rxb1 {[%clk 0:00:06]} 1-0


[Site "https://www.chess.com"]

[Event "Titled Tuesday Blitz November 08 Early 2022"]
[White "Johnson, Ben"]
[Black "Avazkhonov, Alikhon"]
[WhiteFideId "2010917"]
[BlackFideId "14208504"]
[WhiteElo "2143"]
[BlackElo "1739"]
[Result "0-1"]
[Round "04"]
[TimeControl "180+1"]
[Date "2022.11.09"]
[WhiteClock "0:00:01"]
[BlackClock "0:00:05"]

1. Nf3 {[%clk 0:03:00]}  d5 {[%clk 0:02:57]} 2. e3 {[%clk 0:02:59]}  Nf6 {[%clk 0:02:45]} 3. c4 {[%clk 0:02:59]}  c6 {[%clk 0:02:39]} 4. Nc3 {[%clk 0:02:59]}  Bf5 {[%clk 0:02:38]} 5. cxd5 {[%clk 0:02:58]}  cxd5 {[%clk 0:02:39]} 6. Qb3 {[%clk 0:02:58]}  Qc7 {[%clk 0:02:22]} 7. Nxd5 {[%clk 0:02:55]}  Nxd5 {[%clk 0:02:20]} 8. Qxd5 {[%clk 0:02:56]}  e6 {[%clk 0:02:19]} 9. Bb5+ {[%clk 0:02:48]}  Nc6 {[%clk 0:02:16]} 10. Bxc6+ {[%clk 0:02:30]}  bxc6 {[%clk 0:02:17]} 11. Qc4 {[%clk 0:02:29]}  Qd6 {[%clk 0:01:41]} 12. O-O {[%clk 0:02:17]}  Bd3 {[%clk 0:01:40]} 13. Qc3 {[%clk 0:01:53]}  Bxf1 {[%clk 0:01:39]} 14. Kxf1 {[%clk 0:01:54]}  Qc5 {[%clk 0:01:40]} 15. Qb3 {[%clk 0:01:37]}  Qb5+ {[%clk 0:01:38]} 16. Qxb5 {[%clk 0:01:28]}  cxb5 {[%clk 0:01:39]} 17. Nd4 {[%clk 0:01:27]}  a6 {[%clk 0:01:38]} 18. d3 {[%clk 0:01:27]}  Bd6 {[%clk 0:01:34]} 19. Bd2 {[%clk 0:01:26]}  Kd7 {[%clk 0:01:33]} 20. h3 {[%clk 0:01:22]}  Rhc8 {[%clk 0:01:32]} 21. a3 {[%clk 0:00:45]}  e5 {[%clk 0:01:27]} 22. Nf5 {[%clk 0:00:45]}  Rc2 {[%clk 0:01:27]} 23. Bc3 {[%clk 0:00:41]}  a5 {[%clk 0:00:41]} 24. e4 {[%clk 0:00:39]}  Bc5 {[%clk 0:00:26]} 25. Ne3 {[%clk 0:00:11]}  Bxe3 {[%clk 0:00:25]} 26. fxe3 {[%clk 0:00:12]}  f6 {[%clk 0:00:20]} 27. g4 {[%clk 0:00:11]}  Rc8 {[%clk 0:00:17]} 28. Bxa5 {[%clk 0:00:10]}  Rxb2 {[%clk 0:00:17]} 29. Bb4 {[%clk 0:00:05]}  Rcc2 {[%clk 0:00:16]} 30. d4 {[%clk 0:00:05]}  Rh2 {[%clk 0:00:15]} 31. Kg1 {[%clk 0:00:05]}  Rbg2+ {[%clk 0:00:05]} 32. Kf1 {[%clk 0:00:05]}  Rc2 {[%clk 0:00:06]} 33. Kg1 {[%clk 0:00:05]}  Rxh3 {[%clk 0:00:06]} 34. dxe5 {[%clk 0:00:05]}  fxe5 {[%clk 0:00:06]} 35. Rf1 {[%clk 0:00:05]}  Rg3+ {[%clk 0:00:05]} 36. Kh1 {[%clk 0:00:05]}  Rh3+ {[%clk 0:00:05]} 37. Kg1 {[%clk 0:00:05]}  Rg3+ {[%clk 0:00:02]} 38. Kh1 {[%clk 0:00:05]}  Rxg4 {[%clk 0:00:03]} 39. Rf7+ {[%clk 0:00:04]}  Ke6 {[%clk 0:00:04]} 40. Re7+ {[%clk 0:00:04]}  Kf6 {[%clk 0:00:04]} 41. Rb7 {[%clk 0:00:04]}  Rxe4 {[%clk 0:00:05]} 42. Rb6+ {[%clk 0:00:03]}  Kf5 {[%clk 0:00:04]} 43. Rxb5 {[%clk 0:00:04]}  Rxe3 {[%clk 0:00:05]} 44. Rb7 {[%clk 0:00:02]}  Ree2 {[%clk 0:00:04]} 45. Kg1 {[%clk 0:00:02]}  Rc1+ {[%clk 0:00:04]} 46. Be1 {[%clk 0:00:01]}  Rcxe1# {[%clk 0:00:05]} 0-1


[Site "https://www.chess.com"]

[Event "Titled Tuesday Blitz November 08 Early 2022"]
[White "Jones, Gawain C B"]
[Black "Wieczorek, Oskar"]
[WhiteFideId "409561"]
[BlackFideId "1133950"]
[WhiteElo "2657"]
[BlackElo "2404"]
[Result "0-1"]
[Round "04"]
[TimeControl "180+1"]
[Date "2022.11.08"]
[WhiteClock "0:00:02"]
[BlackClock "0:00:12"]

1. Nf3 {[%clk 0:03:00]}  Nf6 {[%clk 0:02:59]} 2. g3 {[%clk 0:03:00]}  g6 {[%clk 0:02:59]} 3. b3 {[%clk 0:02:59]}  Bg7 {[%clk 0:03:00]} 4. Bb2 {[%clk 0:03:00]}  O-O {[%clk 0:03:01]} 5. Bg2 {[%clk 0:02:59]}  d5 {[%clk 0:03:01]} 6. c4 {[%clk 0:02:58]}  c6 {[%clk 0:03:02]} 7. O-O {[%clk 0:02:58]}  Bg4 {[%clk 0:03:02]} 8. Ne5 {[%clk 0:02:58]}  Be6 {[%clk 0:03:02]} 9. d4 {[%clk 0:02:56]}  Nbd7 {[%clk 0:02:57]} 10. Nc3 {[%clk 0:02:53]}  dxc4 {[%clk 0:02:51]} 11. Nxc4 {[%clk 0:02:49]}  Nd5 {[%clk 0:02:50]} 12. e4 {[%clk 0:02:45]}  Nxc3 {[%clk 0:02:47]} 13. Bxc3 {[%clk 0:02:46]}  Bxc4 {[%clk 0:02:41]} 14. bxc4 {[%clk 0:02:45]}  c5 {[%clk 0:02:34]} 15. Rc1 {[%clk 0:02:19]}  cxd4 {[%clk 0:02:31]} 16. Bxd4 {[%clk 0:02:20]}  Bxd4 {[%clk 0:02:18]} 17. Qxd4 {[%clk 0:02:21]}  b6 {[%clk 0:02:19]} 18. e5 {[%clk 0:02:19]}  Nc5 {[%clk 0:02:20]} 19. Qe3 {[%clk 0:02:09]}  Rc8 {[%clk 0:02:17]} 20. Rfd1 {[%clk 0:02:08]}  Qc7 {[%clk 0:02:16]} 21. h4 {[%clk 0:02:08]}  h5 {[%clk 0:02:09]} 22. Bh3 {[%clk 0:01:56]}  Rcd8 {[%clk 0:02:08]} 23. e6 {[%clk 0:01:54]}  f5 {[%clk 0:01:32]} 24. Qg5 {[%clk 0:01:32]}  Kh7 {[%clk 0:01:23]} 25. Rxd8 {[%clk 0:01:06]}  Qxd8 {[%clk 0:01:17]} 26. Re1 {[%clk 0:00:42]}  Qd6 {[%clk 0:01:10]} 27. Bg2 {[%clk 0:00:36]}  f4 {[%clk 0:00:24]} 28. Bd5 {[%clk 0:00:32]}  Rf5 {[%clk 0:00:20]} 29. Qxf5 {[%clk 0:00:21]}  gxf5 {[%clk 0:00:20]} 30. Kg2 {[%clk 0:00:19]}  Kg7 {[%clk 0:00:20]} 31. Kf3 {[%clk 0:00:17]}  Kf6 {[%clk 0:00:19]} 32. Re2 {[%clk 0:00:11]}  Nd3 {[%clk 0:00:18]} 33. Rd2 {[%clk 0:00:09]}  Ne5+ {[%clk 0:00:18]} 34. Ke2 {[%clk 0:00:08]}  fxg3 {[%clk 0:00:13]} 35. fxg3 {[%clk 0:00:09]}  Qc5 {[%clk 0:00:11]} 36. Rc2 {[%clk 0:00:02]}  Ng4 {[%clk 0:00:11]} 37. Kd2 {[%clk 0:00:01]}  Qe3+ {[%clk 0:00:11]} 38. Kd1 {[%clk 0:00:02]}  Nf2+ {[%clk 0:00:12]} 0-1


[Site "https://www.chess.com"]

[Event "Titled Tuesday Blitz November 08 Early 2022"]
[White "Kollars, Dmitrij"]
[Black "Gokerkan, Cem Kaan"]
[WhiteFideId "12909572"]
[BlackFideId "6336760"]
[WhiteElo "2584"]
[BlackElo "2365"]
[Result "1-0"]
[Round "04"]
[TimeControl "180+1"]
[Date "2022.11.08"]
[WhiteClock "0:00:12"]
[BlackClock "0:00:02"]

1. c4 {[%clk 0:03:00]}  g6 {[%clk 0:02:59]} 2. g3 {[%clk 0:02:57]}  Bg7 {[%clk 0:03:00]} 3. Bg2 {[%clk 0:02:57]}  e5 {[%clk 0:02:57]} 4. Nc3 {[%clk 0:02:57]}  Nc6 {[%clk 0:02:58]} 5. e4 {[%clk 0:02:56]}  d6 {[%clk 0:02:55]} 6. Nge2 {[%clk 0:02:56]}  h5 {[%clk 0:02:53]} 7. h3 {[%clk 0:02:54]}  Be6 {[%clk 0:02:34]} 8. d3 {[%clk 0:02:51]}  Qd7 {[%clk 0:02:34]} 9. Nd5 {[%clk 0:02:46]}  O-O-O {[%clk 0:02:27]} 10. b4 {[%clk 0:02:40]}  Nd4 {[%clk 0:02:20]} 11. Nxd4 {[%clk 0:02:37]}  exd4 {[%clk 0:02:21]} 12. Nf4 {[%clk 0:02:38]}  Kb8 {[%clk 0:02:14]} 13. a4 {[%clk 0:02:34]}  h4 {[%clk 0:02:11]} 14. g4 {[%clk 0:02:32]}  Bh6 {[%clk 0:02:11]} 15. g5 {[%clk 0:02:10]}  Bg7 {[%clk 0:01:38]} 16. a5 {[%clk 0:02:04]}  Ne7 {[%clk 0:01:32]} 17. b5 {[%clk 0:02:01]}  f5 {[%clk 0:01:22]} 18. a6 {[%clk 0:01:20]}  b6 {[%clk 0:01:22]} 19. exf5 {[%clk 0:01:17]}  Bxf5 {[%clk 0:01:19]} 20. Qf3 {[%clk 0:01:18]}  d5 {[%clk 0:01:19]} 21. cxd5 {[%clk 0:01:15]}  Nc8 {[%clk 0:00:21]} 22. d6 {[%clk 0:01:12]}  Rde8+ {[%clk 0:00:11]} 23. Kd1 {[%clk 0:00:48]}  c6 {[%clk 0:00:12]} 24. bxc6 {[%clk 0:00:49]}  Qxd6 {[%clk 0:00:12]} 25. c7+ {[%clk 0:00:48]}  Kxc7 {[%clk 0:00:13]} 26. Qb7+ {[%clk 0:00:23]}  Kd8 {[%clk 0:00:13]} 27. Qxg7 {[%clk 0:00:24]}  Qb4 {[%clk 0:00:08]} 28. Qf6+ {[%clk 0:00:19]}  Re7 {[%clk 0:00:06]} 29. Qxh8+ {[%clk 0:00:18]}  Kd7 {[%clk 0:00:07]} 30. Be4 {[%clk 0:00:15]}  Qb3+ {[%clk 0:00:06]} 31. Ke2 {[%clk 0:00:13]}  Bxe4 {[%clk 0:00:03]} 32. Qxd4+ {[%clk 0:00:11]}  Bd5+ {[%clk 0:00:03]} 33. Be3 {[%clk 0:00:11]}  Qc2+ {[%clk 0:00:02]} 34. Ke1 {[%clk 0:00:12]} 1-0


[Site "https://www.chess.com"]

[Event "Titled Tuesday Blitz November 08 Early 2022"]
[White "Korelskiy, Egor"]
[Black "Kovalev, Vladislav"]
[WhiteFideId "34329064"]
[BlackFideId "13504398"]
[WhiteElo "2573"]
[BlackElo "2828"]
[Result "0-1"]
[Round "04"]
[TimeControl "180+1"]
[Date "2022.11.09"]
[WhiteClock "0:00:02"]
[BlackClock "0:00:31"]

1. e4 {[%clk 0:03:00]}  e5 {[%clk 0:02:59]} 2. Nf3 {[%clk 0:03:00]}  Nc6 {[%clk 0:02:58]} 3. Bb5 {[%clk 0:02:59]}  a6 {[%clk 0:02:59]} 4. Ba4 {[%clk 0:02:57]}  d6 {[%clk 0:02:59]} 5. O-O {[%clk 0:02:56]}  Bd7 {[%clk 0:02:59]} 6. c3 {[%clk 0:02:56]}  Nf6 {[%clk 0:02:59]} 7. Re1 {[%clk 0:02:53]}  g6 {[%clk 0:02:59]} 8. d4 {[%clk 0:02:51]}  Bg7 {[%clk 0:02:58]} 9. h3 {[%clk 0:02:51]}  O-O {[%clk 0:02:56]} 10. Nbd2 {[%clk 0:02:49]}  Re8 {[%clk 0:02:55]} 11. Bc2 {[%clk 0:02:42]}  b5 {[%clk 0:02:44]} 12. Nf1 {[%clk 0:02:27]}  a5 {[%clk 0:02:39]} 13. Ng3 {[%clk 0:02:18]}  a4 {[%clk 0:02:38]} 14. Be3 {[%clk 0:01:59]}  Na5 {[%clk 0:02:35]} 15. b3 {[%clk 0:01:49]}  Qc8 {[%clk 0:02:12]} 16. Qd2 {[%clk 0:01:27]}  c5 {[%clk 0:02:07]} 17. d5 {[%clk 0:00:56]}  Qc7 {[%clk 0:01:48]} 18. Rec1 {[%clk 0:00:53]}  Ra6 {[%clk 0:01:46]} 19. Qe2 {[%clk 0:00:49]}  Rea8 {[%clk 0:01:39]} 20. bxa4 {[%clk 0:00:41]}  bxa4 {[%clk 0:01:20]} 21. c4 {[%clk 0:00:41]}  Rb8 {[%clk 0:01:16]} 22. Rab1 {[%clk 0:00:37]}  Rab6 {[%clk 0:01:14]} 23. Bd2 {[%clk 0:00:26]}  Rb2 {[%clk 0:01:06]} 24. Bc3 {[%clk 0:00:19]}  Rxb1 {[%clk 0:01:06]} 25. Rxb1 {[%clk 0:00:19]}  Rxb1+ {[%clk 0:01:06]} 26. Bxb1 {[%clk 0:00:19]}  Qb6 {[%clk 0:01:05]} 27. Bd3 {[%clk 0:00:19]}  Ne8 {[%clk 0:01:01]} 28. Qd2 {[%clk 0:00:19]}  Nb7 {[%clk 0:01:01]} 29. Ne1 {[%clk 0:00:16]}  Nc7 {[%clk 0:01:02]} 30. Qc2 {[%clk 0:00:15]}  Na6 {[%clk 0:00:55]} 31. a3 {[%clk 0:00:10]}  Na5 {[%clk 0:00:53]} 32. Ne2 {[%clk 0:00:07]}  Nb3 {[%clk 0:00:52]} 33. Nf3 {[%clk 0:00:07]}  Bh6 {[%clk 0:00:49]} 34. Ng3 {[%clk 0:00:05]}  Nd4 {[%clk 0:00:45]} 35. Bxd4 {[%clk 0:00:03]}  cxd4 {[%clk 0:00:45]} 36. Ne2 {[%clk 0:00:03]}  Nc5 {[%clk 0:00:45]} 37. Qd1 {[%clk 0:00:02]}  Qb2 {[%clk 0:00:38]} 38. Qb1 {[%clk 0:00:01]}  Qxa3 {[%clk 0:00:33]} 39. Bc2 {[%clk 0:00:01]}  d3 {[%clk 0:00:31]} 40. Qb8+ {[%clk 0:00:01]}  Bf8 {[%clk 0:00:31]} 41. Qxd6 {[%clk 0:00:02]} 0-1


[Site "https://www.chess.com"]

[Event "Titled Tuesday Blitz November 08 Early 2022"]
[White "Kosteniuk, Alexandra"]
[Black "Baches Garcia, Guillermo"]
[WhiteFideId "4128125"]
[BlackFideId "2209764"]
[WhiteElo "2469"]
[BlackElo "2449"]
[Result "0-1"]
[Round "04"]
[TimeControl "180+1"]
[Date "2022.11.09"]
[WhiteClock "0:00:42"]
[BlackClock "0:00:09"]

1. e4 {[%clk 0:03:00]}  c5 {[%clk 0:03:00]} 2. c3 {[%clk 0:03:00]}  d5 {[%clk 0:02:59]} 3. exd5 {[%clk 0:03:00]}  Qxd5 {[%clk 0:03:00]} 4. d4 {[%clk 0:03:01]}  Nc6 {[%clk 0:03:00]} 5. Nf3 {[%clk 0:03:01]}  Bg4 {[%clk 0:03:00]} 6. Be2 {[%clk 0:03:00]}  cxd4 {[%clk 0:02:57]} 7. cxd4 {[%clk 0:02:58]}  e6 {[%clk 0:02:57]} 8. h3 {[%clk 0:02:56]}  Bh5 {[%clk 0:02:56]} 9. Nc3 {[%clk 0:02:56]}  Qa5 {[%clk 0:02:54]} 10. O-O {[%clk 0:02:54]}  Bb4 {[%clk 0:02:52]} 11. d5 {[%clk 0:02:51]}  exd5 {[%clk 0:02:42]} 12. Nxd5 {[%clk 0:02:39]}  O-O-O {[%clk 0:02:28]} 13. Bc4 {[%clk 0:02:29]}  Nf6 {[%clk 0:02:17]} 14. a3 {[%clk 0:02:27]}  Nxd5 {[%clk 0:01:35]} 15. axb4 {[%clk 0:02:26]}  Qxa1 {[%clk 0:01:34]} 16. Bxd5 {[%clk 0:02:26]}  Nxb4 {[%clk 0:01:27]} 17. Qb3 {[%clk 0:01:54]}  Rxd5 {[%clk 0:00:41]} 18. Qc4+ {[%clk 0:01:38]}  Kd7 {[%clk 0:00:21]} 19. Qxb4 {[%clk 0:01:33]}  Qa6 {[%clk 0:00:11]} 20. Re1 {[%clk 0:01:29]}  Re8 {[%clk 0:00:11]} 21. Be3 {[%clk 0:01:03]}  Bxf3 {[%clk 0:00:10]} 22. gxf3 {[%clk 0:01:04]}  Re6 {[%clk 0:00:08]} 23. Qf8 {[%clk 0:00:57]}  Rg6+ {[%clk 0:00:07]} 24. Kh1 {[%clk 0:00:50]}  Qe6 {[%clk 0:00:08]} 25. Kh2 {[%clk 0:00:43]}  Qxh3+ {[%clk 0:00:08]} 26. Kxh3 {[%clk 0:00:42]}  Rh5# {[%clk 0:00:09]} 0-1


[Site "https://www.chess.com"]

[Event "Titled Tuesday Blitz November 08 Early 2022"]
[White "Kozak, Antoni"]
[Black "Jarocka, Liwia"]
[WhiteFideId "21832030"]
[BlackFideId "21807558"]
[WhiteElo "2447"]
[BlackElo "1989"]
[Result "1-0"]
[Round "04"]
[TimeControl "180+1"]
[Date "2022.11.09"]
[WhiteClock "0:01:21"]
[BlackClock "0:00:47"]

1. d4 {[%clk 0:02:53]}  b6 {[%clk 0:02:56]} 2. Nf3 {[%clk 0:02:51]}  Bb7 {[%clk 0:02:56]} 3. g3 {[%clk 0:02:52]}  g6 {[%clk 0:02:56]} 4. Bg2 {[%clk 0:02:52]}  Bg7 {[%clk 0:02:56]} 5. O-O {[%clk 0:02:52]}  Nf6 {[%clk 0:02:51]} 6. c4 {[%clk 0:02:51]}  O-O {[%clk 0:02:52]} 7. Nc3 {[%clk 0:02:49]}  d6 {[%clk 0:02:51]} 8. Qc2 {[%clk 0:02:49]}  c5 {[%clk 0:02:49]} 9. d5 {[%clk 0:02:48]}  a5 {[%clk 0:02:48]} 10. e4 {[%clk 0:02:48]}  Na6 {[%clk 0:02:48]} 11. Bf4 {[%clk 0:02:37]}  Re8 {[%clk 0:02:44]} 12. Rfe1 {[%clk 0:02:32]}  h5 {[%clk 0:01:55]} 13. e5 {[%clk 0:02:29]}  dxe5 {[%clk 0:01:47]} 14. Nxe5 {[%clk 0:02:29]}  Nb4 {[%clk 0:01:41]} 15. Qd2 {[%clk 0:02:28]}  Ng4 {[%clk 0:01:23]} 16. Rad1 {[%clk 0:02:19]}  Nxe5 {[%clk 0:01:19]} 17. Bxe5 {[%clk 0:02:19]}  Bxe5 {[%clk 0:01:18]} 18. Rxe5 {[%clk 0:02:18]}  Qd6 {[%clk 0:01:18]} 19. Re2 {[%clk 0:01:47]}  Rad8 {[%clk 0:01:13]} 20. a3 {[%clk 0:01:36]}  Na6 {[%clk 0:01:13]} 21. Ne4 {[%clk 0:01:36]}  Qb8 {[%clk 0:01:08]} 22. Rde1 {[%clk 0:01:34]}  b5 {[%clk 0:00:58]} 23. Qh6 {[%clk 0:01:34]}  Qe5 {[%clk 0:00:47]} 24. Nxc5 {[%clk 0:01:21]} 1-0


[Site "https://www.chess.com"]

[Event "Titled Tuesday Blitz November 08 Early 2022"]
[White "Ladan, Nicholas"]
[Black "Manon-og, Ramon Jr."]
[WhiteFideId "30918855"]
[BlackFideId "5200776"]
[WhiteElo "2167"]
[BlackElo "2278"]
[Result "1-0"]
[Round "04"]
[TimeControl "180+1"]
[Date "2022.11.09"]
[WhiteClock "0:00:40"]
[BlackClock "0:00:07"]

1. d4 {[%clk 0:03:00]}  Nf6 {[%clk 0:02:59]} 2. c4 {[%clk 0:02:58]}  g6 {[%clk 0:02:59]} 3. g3 {[%clk 0:02:58]}  d5 {[%clk 0:03:00]} 4. cxd5 {[%clk 0:02:57]}  Nxd5 {[%clk 0:03:00]} 5. Bg2 {[%clk 0:02:56]}  Bg7 {[%clk 0:03:00]} 6. Nf3 {[%clk 0:02:54]}  O-O {[%clk 0:03:00]} 7. Nc3 {[%clk 0:02:55]}  c5 {[%clk 0:02:59]} 8. O-O {[%clk 0:02:46]}  cxd4 {[%clk 0:02:56]} 9. Nxd4 {[%clk 0:02:45]}  Nxc3 {[%clk 0:02:55]} 10. bxc3 {[%clk 0:02:45]}  Qa5 {[%clk 0:02:54]} 11. Qb3 {[%clk 0:02:40]}  Nd7 {[%clk 0:02:51]} 12. Rd1 {[%clk 0:02:10]}  Nc5 {[%clk 0:02:49]} 13. Qc4 {[%clk 0:02:08]}  Na4 {[%clk 0:02:27]} 14. Nb3 {[%clk 0:01:50]}  Qxc3 {[%clk 0:01:12]} 15. Qxa4 {[%clk 0:01:48]}  Qc2 {[%clk 0:01:12]} 16. Be3 {[%clk 0:01:30]}  Bxa1 {[%clk 0:01:05]} 17. Rxa1 {[%clk 0:01:31]}  Qxe2 {[%clk 0:01:05]} 18. Qd4 {[%clk 0:01:19]}  Bf5 {[%clk 0:00:32]} 19. Bh6 {[%clk 0:01:13]}  e5 {[%clk 0:00:31]} 20. Qd6 {[%clk 0:01:01]}  Qa6 {[%clk 0:00:11]} 21. Bxf8 {[%clk 0:00:58]}  Rxf8 {[%clk 0:00:11]} 22. Qxa6 {[%clk 0:00:57]}  bxa6 {[%clk 0:00:12]} 23. Rc1 {[%clk 0:00:53]}  Rb8 {[%clk 0:00:08]} 24. Rc7 {[%clk 0:00:51]}  e4 {[%clk 0:00:07]} 25. g4 {[%clk 0:00:48]}  Bxg4 {[%clk 0:00:07]} 26. Bxe4 {[%clk 0:00:47]}  Be6 {[%clk 0:00:07]} 27. Rxa7 {[%clk 0:00:40]} 1-0


[Site "https://www.chess.com"]